fUST/lending_fUST_20241217
["ID","MTS","AMOUNT","RATE_DAILY","PERIOD"]
[345696843,1734426646635,-500.0,0.00026301,6]
[345696845,1734426646645,-1255.28,0.00026301,6]
[345696847,1734426646654,-500.0,0.00026301,6]
[345696849,1734426646663,-500.0,0.00026301,6]
[345696851,1734426646673,-500.0,0.00026301,6]
[345696853,1734426646682,-666.04,0.00026301,6]
[345696855,1734426646691,-500.0,0.00026301,6]
[345696857,1734426646700,-500.0,0.00026301,6]
[345696859,1734426646709,-500.0,0.00026301,6]
[345696861,1734426646718,-500.0,0.00026301,6]
[345696863,1734426646728,-1162.05,0.00026301,6]
[345696865,1734426646737,-500.0,0.00026301,6]
[345696867,1734426646746,-789.99,0.00026301,6]
[345696869,1734426646756,-500.0,0.00026301,6]
[345696871,1734426646766,-838.31,0.00026301,6]
[345696873,1734426646775,-500.0,0.00026301,6]
[345696875,1734426646784,-856.48,0.00026301,6]
[345696877,1734426646793,-244.17,0.00026301,6]
[345696879,1734426646803,-1658.38,0.00026301,6]
[345696881,1734426646813,-1867.7,0.00026301,6]
[345696883,1734426646823,-500.0,0.00026301,6]
[345696885,1734426646832,-500.0,0.00026301,6]
[345696887,1734426646841,-500.0,0.00026301,6]
[345696889,1734426646852,-525.97,0.00026301,6]
[345696891,1734426646862,-500.0,0.00026301,6]
[345696893,1734426646871,-1821.85,0.00026301,2]
[345696895,1734426646880,-1529.71,0.00026301,6]
[345696897,1734426646889,-835.55,0.00026301,6]
[345696899,1734426646898,-1852.27,0.00026301,6]
[345696905,1734426646942,-1305.89,0.00026301,6]
[345696907,1734426646951,-1846.95,0.00026301,6]
[345696909,1734426646960,-703.85,0.00026301,6]
[345696911,1734426646970,-500.0,0.00026301,6]
[345696913,1734426646979,-500.0,0.00026301,6]
[345696915,1734426646987,-500.0,0.00026301,6]
[345696917,1734426646997,-500.0,0.00026301,6]
[345696919,1734426647007,-500.0,0.00026301,6]
[345696921,1734426647016,-510.99,0.00026301,6]
[345696923,1734426647025,-500.0,0.00026301,6]
[345696925,1734426647034,-1526.26,0.00026301,6]
[345696927,1734426647044,-538.11,0.00026301,6]
[345696929,1734426647054,-1177.46,0.00026301,6]
[345696931,1734426647063,-500.0,0.00026301,6]
[345696933,1734426647072,-500.0,0.00026301,6]
[345696935,1734426647081,-899.54,0.00026301,6]
[345696937,1734426647090,-500.0,0.00026301,6]
[345696939,1734426647098,-703.51,0.00026301,2]
[345696941,1734426647108,-500.0,0.00026301,6]
[345696943,1734426647117,-790.81,0.00026301,6]
[345696945,1734426647126,-502.35,0.00026301,6]
[345696947,1734426647135,-500.0,0.00026301,6]
[345696949,1734426647145,-1753.87,0.00026301,6]
[345696951,1734426647154,-371.01830749,0.00026301,6]
[345696953,1734426647164,-500.0,0.00026301,6]
[345696955,1734426647173,-500.0,0.00026301,6]
[345696957,1734426647183,-2060.34,0.00026301,6]
[345696959,1734426647191,-500.0,0.00026301,6]
[345696961,1734426647201,-500.0,0.00026301,6]
[345696963,1734426647210,-2075.79,0.00026301,6]
[345696965,1734426647219,-500.0,0.00026301,6]
[345696967,1734426647229,-1126.73,0.00026301,6]
[345696969,1734426647240,-597.17,0.00026301,6]
[345696971,1734426647249,-500.0,0.00026301,6]
[345696973,1734426647260,-514.16498584,0.00026301,2]
[345696975,1734426647270,-1432.56,0.00026301,6]
[345696977,1734426647280,-1896.07,0.00026301,6]
[345696979,1734426647290,-1426.8,0.00026301,6]
[345696981,1734426647299,-1580.55,0.00026301,6]
[345696983,1734426647308,-1147.09,0.00026301,6]
[345696985,1734426647318,-2173.19,0.00026301,6]
[345696987,1734426647327,-1379.04,0.00026301,6]
[345696989,1734426647336,-893.35,0.00026301,6]
[345696991,1734426647345,-500.0,0.00026301,6]
[345696993,1734426647354,-1152.23,0.00026301,6]
[345696995,1734426647363,-953.55,0.00026301,6]
[345696997,1734426647373,-5415.24,0.00026301,6]
[345696999,1734426647382,-500.0,0.00026301,6]
[345697001,1734426647391,-1407.33,0.00026301,6]
[345697003,1734426647400,-741.17,0.00026301,6]
[345697005,1734426647410,-2256.7,0.00026301,6]
[345697007,1734426647419,-500.0,0.00026301,6]
[345697009,1734426647428,-850.42,0.00026301,6]
[345697011,1734426647437,-636.67,0.00026301,6]
[345697013,1734426647446,-609.69,0.00026301,6]
[345697015,1734426647455,-1025.0,0.00026301,6]
[345697017,1734426647464,-2058.25,0.00026301,6]
[345697019,1734426647475,-732.17,0.00026301,6]
[345697021,1734426647484,-390.94303619,0.00026301,6]
[345697023,1734426647493,-542.98,0.00026301,6]
[345697025,1734426647503,-1514.28,0.00026301,6]
[345697027,1734426647513,-2793.89,0.00026301,6]
[345697029,1734426647522,-34745.14,0.00026301,6]
[345697031,1734426647533,-529.88,0.00026301,6]
[345697033,1734426647541,-500.0,0.00026301,6]
[345697035,1734426647550,-614.62,0.00026301,6]
[345697037,1734426647559,-500.0,0.00026301,6]
[345697039,1734426647568,-1788.31,0.00026301,6]
[345697041,1734426647578,-500.0,0.00026301,6]
[345697044,1734426647588,-500.0,0.00026301,6]
[345697045,1734426647597,-651.37,0.00026301,6]
[345697048,1734426647607,-500.0,0.00026301,6]
[345697049,1734426647616,-500.0,0.00026301,6]
[345697052,1734426647625,-2120.77,0.00026301,6]
[345697053,1734426647635,-500.0,0.00026301,6]
[345697056,1734426647644,-1300.08,0.00026301,6]
[345697058,1734426647654,-2520.34,0.00026301,6]
[345697060,1734426647663,-500.0,0.00026301,6]
[345697062,1734426647672,-955.17,0.00026301,6]
[345697064,1734426647682,-500.0,0.00026301,6]
[345697066,1734426647692,-13920.98,0.00026301,6]
[345697068,1734426647701,-6976.34,0.00026301,6]
[345697070,1734426647711,-500.0,0.00026301,6]
[345697072,1734426647720,-1830.31,0.00026301,6]
[345697074,1734426647730,-815.82,0.00026301,6]
[345697076,1734426647740,-500.0,0.00026301,6]
[345697078,1734426647749,-500.0,0.00026301,6]
[345697080,1734426647760,-500.0,0.00026301,6]
[345697082,1734426647770,-1948.13,0.00026301,6]
[345697084,1734426647779,-2229.6,0.00026301,6]
[345697086,1734426647788,-500.0,0.00026301,6]
[345697088,1734426647798,-500.0,0.00026301,6]
[345697090,1734426647807,-8357.26,0.00026301,6]
[345697092,1734426647816,-755.57,0.00026301,6]
[345697094,1734426647826,-1573.96,0.00026301,6]
[345697096,1734426647835,-556.06,0.00026301,6]
[345697098,1734426647844,-1285.01,0.00026301,6]
[345697100,1734426647853,-11928.35,0.00026301,5]
[345697102,1734426647862,-1233.52,0.00026301,6]
[345697104,1734426647871,-696.73,0.00026301,6]
[345697106,1734426647880,-500.0,0.00026301,6]
[345697108,1734426647889,-500.0,0.00026301,6]
[345697110,1734426647898,-712.45,0.00026301,6]
[345697112,1734426647907,-9212.12,0.00026301,6]
[345697114,1734426647917,-500.0,0.00026301,6]
[345697116,1734426647926,-890.33,0.00026301,6]
[345697118,1734426647936,-928.17,0.00026301,6]
[345697120,1734426647945,-557.17,0.00026301,6]
[345697122,1734426647954,-4871.69,0.00026301,6]
[345697124,1734426647963,-500.0,0.00026301,6]
[345697126,1734426647972,-351.798756,0.00026301,2]
[345697128,1734426647981,-351.798756,0.00026301,2]
[345697130,1734426647990,-351.798756,0.00026301,2]
[345697132,1734426647999,-351.798756,0.00026301,2]
[345697134,1734426648010,-212.6338545,0.00026301,2]
[345697136,1734426648019,-1000.0,0.0002631,2]
[345697138,1734426648028,-1000.0,0.00026319,2]
[345697140,1734426648038,-1000.0,0.00026328,2]
[345697142,1734426648047,-153.0,0.00026352,2]
[345697144,1734426648056,-500.0,0.00026375,3]
[345697146,1734426648066,-500.0,0.00026375,3]
[345697148,1734426648075,-151.0,0.00026376,6]
[345697150,1734426648084,-151.0,0.00026376,6]
[345697152,1734426648093,-285.0,0.000264,10]
[345697154,1734426648102,-500.0,0.00026473,2]
[345697156,1734426648112,-504.078649,0.00026473,2]
[345697158,1734426648121,-199.12036975,0.00026475,2]
[345697160,1734426648130,-231.0,0.00026499,7]
[345697162,1734426648141,-231.31076614,0.00026499,5]
[345697164,1734426648149,-30910.63530439,0.000265,2]
[345697166,1734426648159,-2288.85219296,0.000265,2]
[345697168,1734426648169,-2096517.98429087,0.000265,5]
[345697184,1734426648313,-1573.7334756,0.000265,5]
[345697228,1734426648728,-821.72,0.00024931,6]
[345697230,1734426648738,-821.72,0.00025205,6]
[345697233,1734426648750,-821.72,0.00025479,6]
[345697235,1734426648761,-821.72,0.00025753,6]
[345697237,1734426648771,-821.72,0.00026027,6]
[345697239,1734426648780,-821.72,0.00026301,6]
[345697241,1734426648790,-4958.43000386,0.000265,5]
[345697258,1734426649097,-5374.73059115,0.000265,5]
[345697302,1734426649512,-666.0,0.00024831,2]
[345697304,1734426649522,-407.9,0.000265,5]
[345697308,1734426649544,-3511.6332694,0.000265,5]
[345697310,1734426649559,-4917.83277025,0.000265,5]
[345697313,1734426649575,-744.95866907,0.000265,5]
[345704331,1734427374565,165.342998,0.00013973,2]
[345704418,1734427832941,-1143.03232607,0.00022,2]
[345704419,1734427832950,-5163.78649432,0.00022,2]
[345704420,1734427832960,-300.0,0.00023999,2]
[345704421,1734427832970,-1263.54218983,0.00024,2]
[345704422,1734427832980,-3201.405,0.00024,2]
[345704423,1734427832990,-5565.57676986,0.0002458,2]
[345704424,1734427833000,-174.85,0.0002458,7]
[345704425,1734427833009,-500.0,0.00024657,6]
[345704426,1734427833019,-500.0,0.00024657,6]
[345704427,1734427833029,-500.0,0.00024657,6]
[345704428,1734427833039,-500.0,0.00024657,6]
[345704429,1734427833048,-533.05229146,0.00024657,6]
[345704430,1734427833060,-500.0,0.00024657,6]
[345704431,1734427833069,-500.0,0.00024657,6]
[345704432,1734427833079,-675.43,0.00024657,6]
[345704433,1734427833089,-500.0,0.00024657,6]
[345704434,1734427833099,-500.0,0.00024657,6]
[345704435,1734427833108,-500.0,0.00024657,6]
[345704436,1734427833118,-500.0,0.00024657,6]
[345704437,1734427833129,-500.0,0.00024657,6]
[345704438,1734427833138,-500.0,0.00024657,6]
[345704439,1734427833148,-500.0,0.00024657,6]
[345704440,1734427833158,-524.99,0.00024657,6]
[345704441,1734427833167,-500.0,0.00024657,6]
[345704442,1734427833178,-587.62284064,0.00024657,6]
[345704443,1734427833187,-1083.55,0.00024657,6]
[345704444,1734427833197,-1312.03,0.00024657,6]
[345704445,1734427833207,-560.16,0.00024657,6]
[345704447,1734427833218,-500.0,0.00024657,6]
[345704448,1734427833227,-925.01,0.00024657,6]
[345704450,1734427833237,-500.0,0.00024657,6]
[345704451,1734427833248,-500.0,0.00024657,6]
[345704452,1734427833258,-500.0,0.00024657,6]
[345704453,1734427833268,-500.0,0.00024657,6]
[345704454,1734427833277,-559.57,0.00024657,6]
[345704455,1734427833287,-500.0,0.00024657,6]
[345704456,1734427833296,-500.0,0.00024657,6]
[345704457,1734427833305,-577.87,0.00024657,6]
[345704458,1734427833318,-500.0,0.00024657,6]
[345704459,1734427833327,-500.0,0.00024657,6]
[345704460,1734427833336,-1322.95,0.00024657,6]
[345704461,1734427833346,-500.0,0.00024657,6]
[345704462,1734427833355,-535.19,0.00024657,6]
[345704463,1734427833364,-500.0,0.00024657,6]
[345704464,1734427833374,-172.95,0.00024657,6]
[345704465,1734427833383,-500.0,0.00024657,6]
[345704466,1734427833393,-500.0,0.00024657,6]
[345704467,1734427833403,-1369.7,0.00024657,2]
[345704468,1734427833412,-1286.55,0.00024657,6]
[345704469,1734427833421,-591.85,0.00024657,6]
[345704470,1734427833431,-1308.26,0.00024657,6]
[345704471,1734427833440,-500.0,0.00024657,6]
[345704472,1734427833450,-976.82,0.00024657,6]
[345704473,1734427833459,-500.0,0.00024657,6]
[345704474,1734427833468,-1114.89,0.00024657,6]
[345704475,1734427833478,-500.0,0.00024657,6]
[345704476,1734427833489,-816.16,0.00024657,6]
[345704477,1734427833498,-1081.1,0.00024657,6]
[345704478,1734427833509,-500.0,0.00024657,6]
[345704479,1734427833518,-834.03,0.00024657,6]
[345704480,1734427833527,-500.0,0.00024657,6]
[345704481,1734427833537,-1073.08,0.00024657,6]
[345704482,1734427833546,-500.0,0.00024657,6]
[345704483,1734427833558,-500.0,0.00024657,6]
[345704484,1734427833567,-1242.32,0.00024657,6]
[345704485,1734427833577,-500.0,0.00024657,2]
[345704486,1734427833587,-500.0,0.00024657,6]
[345704487,1734427833599,-500.0,0.00024657,6]
[345704488,1734427833610,-500.0,0.00024657,6]
[345704489,1734427833619,-500.0,0.00024657,6]
[345704490,1734427833629,-500.0,0.00024657,6]
[345704491,1734427833639,-500.0,0.00024657,6]
[345704492,1734427833648,-1343.05,0.00024657,6]
[345704493,1734427833658,-1010.65,0.00024657,6]
[345704494,1734427833668,-676.97,0.00024657,6]
[345704495,1734427833679,-500.0,0.00024657,6]
[345704496,1734427833689,-500.0,0.00024657,6]
[345704497,1734427833699,-1266.72,0.00024657,6]
[345704498,1734427833708,-500.0,0.00024657,6]
[345704499,1734427833718,-504.65,0.00024657,6]
[345704500,1734427833728,-500.0,0.00024657,6]
[345704501,1734427833738,-500.0,0.00024657,6]
[345704502,1734427833747,-500.0,0.00024657,6]
[345704503,1734427833758,-657.45,0.00024657,6]
[345704504,1734427833768,-500.0,0.00024657,6]
[345704505,1734427833778,-521.36,0.00024657,6]
[345704506,1734427833788,-500.0,0.00024657,6]
[345704507,1734427833797,-1459.41,0.00024657,6]
[345704508,1734427833808,-500.0,0.00024657,6]
[345704509,1734427833817,-500.0,0.00024657,6]
[345704510,1734427833827,-798.1,0.00024657,6]
[345704511,1734427833836,-500.0,0.00024657,6]
[345704512,1734427833846,-4941.58,0.00024657,6]
[345704513,1734427833856,-1119.55,0.00024657,6]
[345704514,1734427833866,-7395.52,0.00024657,6]
[345704515,1734427833876,-812.52,0.00024657,6]
[345704516,1734427833886,-6525.25,0.00024657,6]
[345704517,1734427833897,-500.0,0.00024657,6]
[345704518,1734427833907,-5919.73,0.00024657,6]
[345704519,1734427833917,-996.86,0.00024657,6]
[345704520,1734427833927,-1579.3,0.00024657,6]
[345704521,1734427833937,-500.0,0.00024657,6]
[345704522,1734427833947,-500.0,0.00024657,6]
[345704523,1734427833957,-500.0,0.00024657,6]
[345704524,1734427833967,-500.0,0.00024657,6]
[345704525,1734427833976,-726.04,0.00024657,6]
[345704526,1734427833986,-910.22,0.00024657,6]
[345704527,1734427833995,-24611.14,0.00024657,6]
[345704528,1734427834005,-596.05231479,0.00024657,6]
[345704529,1734427834015,-8449.25,0.00024657,5]
[345704530,1734427834024,-1347.38,0.00024657,6]
[345704531,1734427834033,-500.0,0.00024657,6]
[345704532,1734427834043,-500.0,0.00024657,6]
[345704533,1734427834052,-647.09,0.00024657,6]
[345704534,1734427834063,-920.89,0.00024657,6]
[345704535,1734427834073,-294.97503682,0.00024657,6]
[345704536,1734427834083,-500.0,0.00024657,6]
[345704537,1734427834092,-500.0,0.00024657,6]
[345704538,1734427834101,-500.0,0.00024657,6]
[345704539,1734427834111,-500.0,0.00024657,6]
[345704540,1734427834120,-500.0,0.00024657,6]
[345704541,1734427834130,-1502.21,0.00024657,6]
[345704542,1734427834139,-500.0,0.00024657,6]
[345704543,1734427834148,-1598.49,0.00024657,6]
[345704544,1734427834158,-500.0,0.00024657,6]
[345704545,1734427834167,-873.75,0.00024657,6]
[345704546,1734427834177,-500.0,0.00024657,6]
[345704547,1734427834186,-889.15,0.00024657,6]
[345704548,1734427834195,-500.0,0.00024657,6]
[345704549,1734427834204,-3450.78,0.00024657,6]
[345704550,1734427834214,-1979.01,0.00024657,6]
[345704551,1734427834223,-3835.79,0.00024657,6]
[345704552,1734427834232,-500.0,0.00024657,6]
[345704553,1734427834241,-500.0,0.00024657,6]
[345704554,1734427834250,-1014.73,0.00024657,6]
[345704555,1734427834260,-500.0,0.00024657,6]
[345704556,1734427834270,-500.0,0.00024657,6]
[345704557,1734427834279,-500.0,0.00024657,6]
[345704558,1734427834288,-602.38,0.00024657,6]
[345704559,1734427834298,-336.03332326,0.00024657,6]
[345704560,1734427834309,-500.0,0.00024657,6]
[345704561,1734427834319,-823.12,0.00024657,6]
[345704562,1734427834328,-1539.34,0.00024657,6]
[345704563,1734427834337,-500.0,0.00024657,6]
[345704564,1734427834346,-637.17,0.00024657,6]
[345704565,1734427834355,-1785.24,0.00024657,6]
[345704566,1734427834365,-500.0,0.00024657,6]
[345704567,1734427834375,-518.62,0.00024657,6]
[345704568,1734427834385,-593.8,0.00024657,6]
[345704569,1734427834394,-1296.47,0.00024657,6]
[345704570,1734427834404,-606.67,0.00024657,6]
[345704571,1734427834414,-1457.92,0.00024657,6]
[345704572,1734427834424,-500.0,0.00024657,6]
[345704573,1734427834433,-1379.92,0.00024657,6]
[345704574,1734427834443,-1072.62,0.00024657,6]
[345704575,1734427834452,-630.65,0.00024657,6]
[345704576,1734427834462,-500.0,0.00024657,6]
[345704577,1734427834472,-582.05,0.00024657,6]
[345704578,1734427834482,-632.79,0.00024657,6]
[345704579,1734427834492,-500.0,0.00024657,6]
[345704580,1734427834501,-1174.69,0.00024657,6]
[345704581,1734427834510,-500.0,0.00024657,6]
[345704582,1734427834520,-676.58,0.00024657,6]
[345704583,1734427834529,-533.0,0.00024723,2]
[345704584,1734427834538,-2154.0,0.00024723,2]
[345704585,1734427834547,-2367.0,0.00024723,2]
[345704586,1734427834558,-500.0,0.0002493,2]
[345704587,1734427834567,-500.0,0.0002493,2]
[345704588,1734427834576,-581.02149767,0.0002493,2]
[345704589,1734427834585,-500.0,0.0002493,2]
[345704590,1734427834595,-258.81981551,0.0002493,2]
[345704591,1734427834612,-500.0,0.0002493,2]
[345704592,1734427834621,-500.0,0.00024931,6]
[345704593,1734427834631,-500.0,0.00024931,6]
[345704594,1734427834640,-500.0,0.00024931,6]
[345704595,1734427834649,-347.6513852,0.00024931,6]
[345704596,1734427834659,-500.0,0.00024931,6]
[345704597,1734427834669,-500.0,0.00024931,6]
[345704598,1734427834678,-675.43,0.00024931,6]
[345704599,1734427834687,-502.03214966,0.00024931,6]
[345704600,1734427834697,-500.0,0.00024931,6]
[345704601,1734427834706,-500.0,0.00024931,6]
[345704602,1734427834715,-500.0,0.00024931,6]
[345704603,1734427834724,-242.34756737,0.00024931,6]
[345704604,1734427834733,-500.0,0.00024931,6]
[345704605,1734427834742,-500.0,0.00024931,6]
[345704606,1734427834751,-524.99,0.00024931,6]
[345704607,1734427834761,-500.0,0.00024931,6]
[345704608,1734427834771,-1083.55,0.00024931,6]
[345704609,1734427834780,-1312.03,0.00024931,6]
[345704610,1734427834789,-560.16,0.00024931,6]
[345704611,1734427834799,-500.0,0.00024931,6]
[345704612,1734427834808,-925.01,0.00024931,6]
[345704613,1734427834824,-500.0,0.00024931,6]
[345704614,1734427834833,-500.0,0.00024931,6]
[345704615,1734427834843,-500.0,0.00024931,6]
[345704616,1734427834852,-500.0,0.00024931,6]
[345704617,1734427834862,-559.57,0.00024931,6]
[345704618,1734427835033,-500.0,0.00024931,6]
[345704619,1734427835043,-500.0,0.00024931,6]
[345704620,1734427835052,-577.87,0.00024931,6]
[345704621,1734427835064,-500.0,0.00024931,6]
[345704622,1734427835074,-1322.95,0.00024931,6]
[345704623,1734427835083,-500.0,0.00024931,6]
[345704624,1734427835092,-500.0,0.00024931,6]
[345704625,1734427835101,-535.19,0.00024931,6]
[345704626,1734427835110,-500.0,0.00024931,6]
[345704627,1734427835119,-172.95,0.00024931,6]
[345704628,1734427835129,-152.08692277,0.00024931,6]
[345704629,1734427835138,-500.0,0.00024931,6]
[345704630,1734427835147,-1369.7,0.00024931,2]
[345704631,1734427835156,-1286.55,0.00024931,6]
[345704632,1734427835165,-591.85,0.00024931,6]
[345704633,1734427835174,-1308.26,0.00024931,6]
[345704634,1734427835184,-500.0,0.00024931,6]
[345704635,1734427835194,-976.82,0.00024931,6]
[345704636,1734427835203,-500.0,0.00024931,6]
[345704637,1734427835212,-1114.89,0.00024931,6]
[345704638,1734427835221,-500.0,0.00024931,6]
[345704639,1734427835230,-816.16,0.00024931,6]
[345704640,1734427835240,-1081.1,0.00024931,6]
[345704641,1734427835249,-500.0,0.00024931,6]
[345704642,1734427835259,-834.03,0.00024931,6]
[345704643,1734427835268,-500.0,0.00024931,6]
[345704644,1734427835277,-1073.08,0.00024931,6]
[345704645,1734427835286,-500.0,0.00024931,6]
[345704646,1734427835296,-500.0,0.00024931,6]
[345704647,1734427835305,-1242.32,0.00024931,6]
[345704648,1734427835315,-500.0,0.00024931,2]
[345704649,1734427835324,-500.0,0.00024931,6]
[345704650,1734427835333,-500.0,0.00024931,6]
[345704651,1734427835343,-500.0,0.00024931,6]
[345704652,1734427835352,-500.0,0.00024931,6]
[345704653,1734427835361,-500.0,0.00024931,6]
[345704654,1734427835370,-172.57453269,0.00024931,6]
[345704655,1734427835379,-1343.05,0.00024931,6]
[345704656,1734427835388,-1010.65,0.00024931,6]
[345704657,1734427835398,-676.97,0.00024931,6]
[345704658,1734427835407,-500.0,0.00024931,6]
[345704659,1734427835415,-500.0,0.00024931,6]
[345704660,1734427835424,-1266.72,0.00024931,6]
[345704661,1734427835434,-500.0,0.00024931,6]
[345704662,1734427835443,-504.65,0.00024931,6]
[345704663,1734427835452,-500.0,0.00024931,6]
[345704664,1734427835462,-500.0,0.00024931,6]
[345704665,1734427835471,-500.0,0.00024931,6]
[345704666,1734427835480,-657.45,0.00024931,6]
[345704667,1734427835490,-500.0,0.00024931,6]
[345704668,1734427835499,-521.36,0.00024931,6]
[345704669,1734427835508,-500.0,0.00024931,6]
[345704670,1734427835518,-1459.41,0.00024931,6]
[345704671,1734427835527,-500.0,0.00024931,6]
[345704672,1734427835537,-500.0,0.00024931,6]
[345704673,1734427835547,-798.1,0.00024931,6]
[345704674,1734427835558,-4941.58,0.00024931,6]
[345704675,1734427835567,-1119.55,0.00024931,6]
[345704676,1734427835577,-7395.52,0.00024931,6]
[345704677,1734427835587,-812.52,0.00024931,6]
[345704678,1734427835596,-6525.25,0.00024931,6]
[345704679,1734427835611,-640.34825262,0.00024931,6]
[345704680,1734427835620,-5919.73,0.00024931,6]
[345704681,1734427835629,-996.86,0.00024931,6]
[345704682,1734427835639,-1579.3,0.00024931,6]
[345704683,1734427835648,-500.0,0.00024931,6]
[345704684,1734427835658,-500.0,0.00024931,6]
[345704685,1734427835668,-500.0,0.00024931,6]
[345704686,1734427835678,-500.0,0.00024931,6]
[345704687,1734427835689,-726.04,0.00024931,6]
[345704688,1734427835698,-910.22,0.00024931,6]
[345704689,1734427835707,-24611.14,0.00024931,6]
[345704690,1734427835717,-8449.25,0.00024931,5]
[345704691,1734427835726,-1347.38,0.00024931,6]
[345704692,1734427835736,-500.0,0.00024931,6]
[345704693,1734427835745,-500.0,0.00024931,6]
[345704694,1734427835754,-647.09,0.00024931,6]
[345704695,1734427835763,-920.89,0.00024931,6]
[345704696,1734427835773,-500.0,0.00024931,6]
[345704697,1734427835783,-500.0,0.00024931,6]
[345704698,1734427835792,-500.0,0.00024931,6]
[345704699,1734427835801,-500.0,0.00024931,6]
[345704700,1734427835813,-500.0,0.00024931,6]
[345704701,1734427835823,-1502.21,0.00024931,6]
[345704702,1734427835832,-500.0,0.00024931,6]
[345704703,1734427835842,-1598.49,0.00024931,6]
[345704704,1734427835851,-500.0,0.00024931,6]
[345704705,1734427835860,-873.75,0.00024931,6]
[345704706,1734427835870,-500.0,0.00024931,6]
[345704707,1734427835879,-889.15,0.00024931,6]
[345704708,1734427835889,-500.0,0.00024931,6]
[345704709,1734427835898,-3450.78,0.00024931,6]
[345704710,1734427835908,-1979.01,0.00024931,6]
[345704711,1734427835917,-3835.79,0.00024931,6]
[345704712,1734427835927,-500.0,0.00024931,6]
[345704713,1734427835935,-500.0,0.00024931,6]
[345704714,1734427835945,-1014.73,0.00024931,6]
[345704715,1734427835955,-500.0,0.00024931,6]
[345704716,1734427835964,-500.0,0.00024931,6]
[345704717,1734427835974,-500.0,0.00024931,6]
[345704718,1734427835983,-602.38,0.00024931,6]
[345704719,1734427835993,-500.0,0.00024931,6]
[345704720,1734427836002,-823.12,0.00024931,6]
[345704721,1734427836011,-1539.34,0.00024931,6]
[345704722,1734427836021,-500.0,0.00024931,6]
[345704723,1734427836030,-637.17,0.00024931,6]
[345704724,1734427836039,-1785.24,0.00024931,6]
[345704725,1734427836048,-500.0,0.00024931,6]
[345704726,1734427836059,-518.62,0.00024931,6]
[345704727,1734427836068,-593.8,0.00024931,6]
[345704728,1734427836078,-1296.47,0.00024931,6]
[345704729,1734427836087,-606.67,0.00024931,6]
[345704730,1734427836096,-1457.92,0.00024931,6]
[345704731,1734427836106,-500.0,0.00024931,6]
[345704732,1734427836115,-1379.92,0.00024931,6]
[345704733,1734427836125,-1072.62,0.00024931,6]
[345704734,1734427836135,-630.65,0.00024931,6]
[345704735,1734427836144,-500.0,0.00024931,6]
[345704736,1734427836154,-582.05,0.00024931,6]
[345704737,1734427836163,-632.79,0.00024931,6]
[345704738,1734427836173,-231.44930349,0.00024931,6]
[345704739,1734427836182,-1174.69,0.00024931,6]
[345704740,1734427836192,-500.0,0.00024931,6]
[345704741,1734427836201,-676.58,0.00024931,6]
[345704742,1734427836211,-151.9,0.00024992,2]
[345704743,1734427836220,-153.0,0.00025,2]